fUST/lending_fUST_20241124
["ID","MTS","AMOUNT","RATE_DAILY","PERIOD"]
[343166240,1732393837035,-500.0,0.0002447,2]
[343166241,1732393837044,-500.0,0.0002447,2]
[343166242,1732393837058,-500.0,0.0002447,2]
[343166243,1732393837067,-500.0,0.0002447,2]
[343166244,1732393837076,-500.0,0.0002447,2]
[343166245,1732393837086,-500.0,0.0002447,2]
[343166246,1732393837095,-500.0,0.0002447,2]
[343166247,1732393837105,-500.0,0.0002447,2]
[343166248,1732393837114,-500.0,0.0002447,2]
[343166249,1732393837123,-500.0,0.0002447,2]
[343166250,1732393837132,-500.0,0.0002447,2]
[343166251,1732393837142,-500.0,0.0002447,2]
[343166252,1732393837151,-500.0,0.0002447,2]
[343166253,1732393837161,-639.76753969,0.0002447,2]
[343166254,1732393837170,-500.0,0.0002447,2]
[343166255,1732393837180,-6186.01,0.0002447,2]
[343166256,1732393837191,-500.0,0.0002447,2]
[343166257,1732393837200,-500.0,0.0002447,2]
[343166258,1732393837210,-500.0,0.0002447,2]
[343166259,1732393837219,-500.0,0.0002447,2]
[343166260,1732393837229,-500.0,0.0002447,2]
[343166261,1732393837238,-500.0,0.0002447,2]
[343166262,1732393837248,-1160.99,0.0002447,2]
[343166263,1732393837257,-329.79871481,0.0002447,2]
[343166264,1732393837266,-500.0,0.0002447,2]
[343166265,1732393837276,-624.34,0.0002447,2]
[343166266,1732393837286,-500.0,0.0002447,2]
[343166267,1732393837295,-648.17,0.0002447,2]
[343166268,1732393837310,-500.0,0.0002447,2]
[343166269,1732393837320,-500.0,0.0002447,2]
[343166270,1732393837329,-500.0,0.0002447,2]
[343166271,1732393837339,-500.0,0.0002447,2]
[343166272,1732393837348,-500.0,0.0002447,2]
[343166273,1732393837358,-500.0,0.0002447,2]
[343166274,1732393837367,-500.0,0.0002447,2]
[343166275,1732393837377,-1015.24,0.0002447,2]
[343166276,1732393837387,-500.0,0.0002447,2]
[343166277,1732393837396,-500.0,0.0002447,2]
[343166278,1732393837406,-500.0,0.0002447,2]
[343166279,1732393837490,-500.0,0.0002447,2]
[343166280,1732393837504,-500.0,0.0002447,2]
[343166281,1732393837514,-500.0,0.0002447,2]
[343166282,1732393837527,-296.907319,0.0002447,7]
[343166283,1732393837536,-500.0,0.0002447,2]
[343166284,1732393837546,-296.907319,0.0002447,7]
[343166285,1732393837560,-848.11,0.0002447,2]
[343166286,1732393837571,-500.0,0.0002447,2]
[343166287,1732393837581,-500.0,0.0002447,2]
[343166288,1732393837591,-500.0,0.0002447,2]
[343166289,1732393837600,-500.0,0.0002447,2]
[343166290,1732393837610,-151.0,0.0002447,7]
[343166291,1732393837620,-500.0,0.0002447,2]
[343166292,1732393837630,-500.0,0.0002447,2]
[343166293,1732393837640,-500.0,0.00024473,2]
[343166294,1732393837649,-157.08836831,0.00024473,2]
[343166295,1732393837659,-500.0,0.00024473,2]
[343166296,1732393837668,-500.0,0.00024473,2]
[343166297,1732393837679,-552.38929919,0.00024473,2]
[343166298,1732393837689,-555.7017925,0.00024473,2]
[343166299,1732393837699,-1000.0,0.00024521,2]
[343166300,1732393837709,-500.0,0.00024521,2]
[343166301,1732393837719,-500.0,0.00024521,2]
[343166302,1732393837729,-500.0,0.00024532,2]
[343166303,1732393837739,-1150.35,0.00024532,2]
[343166304,1732393837749,-500.0,0.00024532,2]
[343166306,1732393837760,-820.13,0.00024532,2]
[343166308,1732393837769,-500.0,0.00024532,2]
[343166310,1732393837778,-265.99177945,0.00024743,2]
[343166311,1732393837787,-298.13318322,0.00024743,2]
[343166312,1732393837798,-222.03905202,0.00024743,2]
[343166313,1732393837810,-273.9450859,0.00024743,2]
[343166314,1732393837820,-500.0,0.00024744,2]
[343166315,1732393837830,-500.0,0.00024744,2]
[343166316,1732393837840,-500.0,0.00024744,2]
[343166317,1732393837850,-500.0,0.00024744,2]
[343166318,1732393837861,-500.0,0.00024744,2]
[343166319,1732393837870,-500.0,0.00024744,2]
[343166320,1732393837880,-500.0,0.00024744,2]
[343166321,1732393837890,-500.0,0.00024744,2]
[343166322,1732393837900,-500.0,0.00024744,2]
[343166323,1732393837909,-500.0,0.00024744,2]
[343166324,1732393837919,-500.0,0.00024744,2]
[343166325,1732393837929,-500.0,0.00024744,2]
[343166326,1732393837939,-500.0,0.00024744,2]
[343166327,1732393837949,-500.0,0.00024744,2]
[343166328,1732393837959,-500.0,0.00024744,2]
[343166329,1732393837968,-500.0,0.00024744,2]
[343166330,1732393837979,-500.0,0.00024744,2]
[343166331,1732393837988,-500.0,0.00024744,2]
[343166332,1732393837998,-500.0,0.00024744,2]
[343166333,1732393838008,-500.0,0.00024744,2]
[343166334,1732393838018,-500.0,0.00024744,2]
[343166335,1732393838028,-500.0,0.00024744,2]
[343166336,1732393838037,-500.0,0.00024744,2]
[343166337,1732393838047,-6186.01,0.00024744,2]
[343166338,1732393838060,-500.0,0.00024744,2]
[343166339,1732393838070,-500.0,0.00024744,2]
[343166340,1732393838080,-500.0,0.00024744,2]
[343166341,1732393838089,-500.0,0.00024744,2]
[343166342,1732393838099,-500.0,0.00024744,2]
[343166343,1732393838109,-244.38,0.00024744,2]
[343166344,1732393838119,-1160.99,0.00024744,2]
[343166345,1732393838129,-500.0,0.00024744,2]
[343166346,1732393838139,-624.34,0.00024744,2]
[343166348,1732393838149,-500.0,0.00024744,2]
[343166349,1732393838158,-342.43,0.00024744,2]
[343166350,1732393838168,-500.0,0.00024744,2]
[343166351,1732393838177,-518.61,0.00024744,2]
[343166352,1732393838187,-500.0,0.00024744,2]
[343166353,1732393838196,-500.0,0.00024744,2]
[343166354,1732393838206,-151.0,0.00024744,7]
[343166355,1732393838216,-500.0,0.00024744,2]
[343166356,1732393838225,-500.0,0.00024744,2]
[343166357,1732393838235,-1015.24,0.00024744,2]
[343166358,1732393838244,-151.0,0.00024744,7]
[343166359,1732393838254,-490.58,0.00024744,2]
[343166360,1732393838263,-151.0,0.00024744,7]
[343166361,1732393838273,-500.0,0.00024744,2]
[343166362,1732393838283,-626.03,0.00024744,2]
[343166363,1732393838293,-500.0,0.00024744,2]
[343166364,1732393838306,-500.0,0.00024744,2]
[343166365,1732393838315,-1297.63352,0.00024744,7]
[343166366,1732393838325,-1297.63352,0.00024744,7]
[343166367,1732393838335,-500.0,0.00024744,2]
[343166368,1732393838344,-296.907319,0.00024744,7]
[343166369,1732393838353,-500.0,0.00024744,2]
[343166370,1732393838364,-296.907319,0.00024744,7]
[343166371,1732393838374,-848.11,0.00024744,2]
[343166372,1732393838384,-500.0,0.00024744,2]
[343166373,1732393838395,-500.0,0.00024744,2]
[343166374,1732393838405,-500.0,0.00024744,2]
[343166375,1732393838415,-500.0,0.00024744,2]
[343166376,1732393838426,-195.058778,0.00024744,7]
[343166377,1732393838435,-500.0,0.00024744,2]
[343166378,1732393838445,-500.0,0.00024744,2]
[343166379,1732393838454,-500.0,0.00024806,2]
[343166380,1732393838464,-1150.35,0.00024806,2]
[343166381,1732393838476,-500.0,0.00024806,2]
[343166382,1732393838487,-820.13,0.00024806,2]
[343166383,1732393838497,-500.0,0.00024806,2]
[343166384,1732393838507,-202.0,0.00025,2]
[343166385,1732393838517,-160.0,0.00025,2]
[343166386,1732393838527,-500.0,0.00025018,2]
[343166387,1732393838537,-305.17641142,0.00025018,2]
[343166388,1732393838547,-500.0,0.00025018,2]
[343166389,1732393838560,-500.0,0.00025018,2]
[343166390,1732393838570,-500.0,0.00025018,2]
[343166391,1732393838580,-483.07,0.00025018,2]
[343166392,1732393838592,-187.8168498,0.00025018,2]
[343166393,1732393838710,-312.1831502,0.00025018,2]
[343166394,1732393838719,-500.0,0.00025018,2]
[343166395,1732393838729,-500.0,0.00025018,2]
[343166396,1732393838738,-184.09826065,0.00025018,2]
[343166397,1732393838751,-315.90173935,0.00025018,2]
[343166398,1732393838760,-500.0,0.00025018,2]
[343166399,1732393838770,-500.0,0.00025018,2]
[343166400,1732393838779,-359.98569282,0.00025018,2]
[343166401,1732393838791,-140.01430718,0.00025018,2]
[343166402,1732393838804,-361.9,0.00025018,2]
[343166403,1732393838814,-500.0,0.00025018,2]
[343166404,1732393838824,-500.0,0.00025018,2]
[343166405,1732393838833,-234.47056282,0.00025018,2]
[343166638,1732393842423,-5155.01,0.00023162,2]
[343166641,1732393842434,-5155.01,0.00023436,2]
[343166643,1732393842444,-5155.01,0.0002371,2]
[343166645,1732393842455,-500.0,0.00023923,2]
[343166647,1732393842465,-556.25817536,0.00023923,2]
[343166649,1732393842476,-5155.01,0.00023984,2]
[343166651,1732393842488,-4536.70182876,0.00024258,2]
[343166778,1732393843513,-618.30817124,0.00024258,2]
[343166780,1732393843525,-151.0,0.0002447,7]
[343166782,1732393843534,-2966.78462171,0.00024532,2]
[343168221,1732393875113,-500.0,0.00022441,2]
[343168222,1732393875123,-500.0,0.00022715,2]
[343168223,1732393875133,-500.0,0.00022989,2]
[343168224,1732393875143,-500.0,0.00023263,2]
[343168225,1732393875152,-500.0,0.00023537,2]
[343168226,1732393875162,-500.0,0.00023811,2]
[343168227,1732393875171,-500.0,0.00023922,2]
[343168228,1732393875182,-500.0,0.00024085,2]
[343168229,1732393875191,-500.0,0.00024196,2]
[343168230,1732393875202,-500.0,0.00024359,2]
[343168231,1732393875212,-500.0,0.0002447,2]
[343168232,1732393875222,-151.0,0.0002447,7]
[343168233,1732393875232,-2188.22537829,0.00024532,2]
[343168234,1732393875242,-447.44,0.00024633,2]
[343168235,1732393875251,-151.0,0.00024744,7]
[343168236,1732393875261,-500.0,0.00024744,2]
[343168237,1732393875271,-151.0,0.00024744,7]
[343168238,1732393875281,-5155.01,0.00024806,2]
[343168239,1732393875290,-4912.37373064,0.00024918,2]
[343168240,1732393875301,-104.54943718,0.00025018,2]
[343168241,1732393875311,-500.0,0.00025018,2]
[343168242,1732393875321,-526.62,0.00025018,2]
[343168243,1732393875334,-500.0,0.00025018,2]
[343168244,1732393875344,-500.0,0.00025018,2]
[343168245,1732393875353,-618.54,0.00025018,2]
[343168246,1732393875363,-500.0,0.00025018,2]
[343168247,1732393875374,-500.0,0.00025018,2]
[343168248,1732393875384,-500.0,0.00025018,2]
[343168249,1732393875394,-410.69,0.00025018,2]
[343168250,1732393875404,-500.0,0.00025018,2]
[343168251,1732393875413,-1160.99,0.00025018,2]
[343168252,1732393875423,-500.0,0.00025018,2]
[343168253,1732393875433,-624.34,0.00025018,2]
[343168254,1732393875444,-500.0,0.00025018,2]
[343168255,1732393875454,-587.91,0.00025018,2]
[343168256,1732393875464,-492.27,0.00025018,2]
[343168257,1732393875474,-645.79,0.00025018,2]
[343168258,1732393875485,-500.0,0.00025018,2]
[343168259,1732393875495,-434.76,0.00025018,2]
[343168260,1732393875505,-1015.24,0.00025018,2]
[343168261,1732393875516,-500.0,0.00025018,2]
[343168262,1732393875526,-500.0,0.00025018,2]
[343168263,1732393875535,-500.0,0.00025018,2]
[343168264,1732393875545,-500.0,0.00025018,2]
[343168265,1732393875556,-500.0,0.00025018,2]
[343168266,1732393875566,-848.11,0.00025018,2]
[343168267,1732393875578,-500.0,0.00025018,2]
[343168268,1732393875588,-500.0,0.00025018,2]
[343168269,1732393875599,-500.0,0.00025018,2]
[343168270,1732393875609,-500.0,0.00025018,2]
[343168271,1732393875619,-500.0,0.00025018,2]
[343168272,1732393875630,-246.65,0.00025018,2]
[343168273,1732393875640,-500.0,0.00025018,2]
[343168274,1732393875650,-1000.0,0.00025021,2]
[343168275,1732393875659,-1000.0,0.00025021,2]
[343168276,1732393875669,-1000.59378095,0.00025021,2]
[343168277,1732393875679,-500.0,0.0002508,2]
[343168278,1732393875690,-1150.35,0.0002508,2]
[343168279,1732393875700,-500.0,0.0002508,2]
[343168280,1732393875710,-820.13,0.0002508,2]
[343168281,1732393875719,-500.0,0.0002508,2]
[343168282,1732393875728,-5155.01,0.0002508,2]
[343168283,1732393875738,-500.0,0.00025292,2]
[343168284,1732393875747,-500.0,0.00025292,2]
[343168285,1732393875757,-500.0,0.00025292,2]
[343168286,1732393875767,-500.0,0.00025292,2]
[343168287,1732393875776,-500.0,0.00025292,2]
[343168288,1732393875785,-500.0,0.00025292,2]
[343168289,1732393875795,-500.0,0.00025292,2]
[343168290,1732393875805,-245.27,0.00025292,2]
[343168291,1732393875814,-500.0,0.00025292,2]
[343168292,1732393875827,-500.0,0.00025292,2]
[343168293,1732393875837,-500.0,0.00025292,2]
[343168294,1732393875847,-157.13,0.00025292,2]
[343168295,1732393875857,-500.0,0.00025292,2]
[343168296,1732393875867,-617.4,0.00025292,2]
[343168297,1732393875876,-500.0,0.00025292,2]
[343168298,1732393875886,-500.0,0.00025292,2]
[343168299,1732393875896,-500.0,0.00025292,2]
[343168300,1732393875906,-442.28,0.00025292,2]
[343168301,1732393875915,-320.13,0.00025292,2]
[343168302,1732393875925,-1160.99,0.00025292,2]
[343168303,1732393875935,-500.0,0.00025292,2]
[343168304,1732393875946,-624.34,0.00025292,2]
[343168305,1732393875955,-640.26,0.00025292,2]
[343168306,1732393875966,-158.0464,0.00025292,7]
[343168307,1732393875976,-500.0,0.00025292,2]
[343168308,1732393875987,-1015.24,0.00025292,2]
[343168309,1732393875996,-151.0,0.00025292,7]
[343168310,1732393876007,-151.0,0.00025292,7]
[343168311,1732393876017,-500.0,0.00025292,2]
[343168312,1732393876027,-500.0,0.00025292,2]
[343168313,1732393876036,-500.0,0.00025292,2]
[343168314,1732393876047,-1297.63352,0.00025292,7]
[343168315,1732393876057,-1297.63352,0.00025292,7]
[343168316,1732393876067,-481.18,0.00025292,2]
[343168317,1732393876087,-500.0,0.00025292,2]
[343168318,1732393876097,-848.11,0.00025292,2]
[343168319,1732393876107,-500.0,0.00025292,2]
[343168320,1732393876118,-567.3,0.00025292,2]
[343168321,1732393876128,-500.0,0.00025292,2]
[343168322,1732393876138,-500.0,0.00025292,2]
[343168323,1732393876149,-500.0,0.00025292,2]
[343168324,1732393876159,-500.0,0.00025292,2]
[343168325,1732393876170,-500.0,0.00025354,2]
[343168326,1732393876181,-482.26732531,0.00025354,2]
[343168450,1732394543148,500.0,0.00027255,120]
[343168451,1732394543911,411.77,0.00027255,120]
[343168470,1732394817292,-500.0,0.00026,30]
[343168471,1732394829138,-169.985426,0.00013973,2]
[343168472,1732394829159,-233.456787,0.00020009,2]
[343168473,1732394829180,-50.30711598,0.00020278,2]
[343168483,1732394954083,-487.13756338,0.00019883,2]
[343168484,1732394954109,-3471.1718657,0.00020084,2]
[343168485,1732394954133,-114.76615932,0.00020278,2]
[343168486,1732394954159,-169.985426,0.00020447,2]
[343168487,1732394954186,-300.0,0.0002061,2]
[343168488,1732394954211,-720.27028127,0.00020611,2]
[343168489,1732394955113,-256.70796592,0.00020611,2]
[343168540,1732395032449,-286.6862773,0.0002061,2]
[343168548,1732395032506,-13.3137227,0.0002061,2]
[343168549,1732395032516,-3783.48621529,0.00020611,2]
[343168552,1732395032528,-6996.70517612,0.00020611,2]
[343168554,1732395032538,-3000.0,0.00020927,2]
[343168556,1732395032551,-746.81,0.00021023,2]
[343168558,1732395032562,-500.0,0.00021023,2]
[343168560,1732395032571,-546.75,0.00021023,2]
[343168562,1732395032581,-164.22,0.00021023,2]
[343168564,1732395032590,-3393.50525621,0.00021024,2]
[343168566,1732395032602,-305.9826076,0.00021024,2]
[343168568,1732395032613,-60.81862459,0.00021024,2]
[343168570,1732395032623,-746.81,0.00021297,2]
[343168572,1732395032634,-500.0,0.00021297,2]
[343168574,1732395032643,-546.75,0.00021297,2]
[343168576,1732395032653,-420.76156949,0.00021439,2]
[343168578,1732395032662,-500.0,0.00021439,2]
[343168580,1732395032671,-72.48347462,0.00021439,2]
[343168680,1732395038690,-427.51652538,0.00021439,2]
[343168682,1732395038699,-392.6979031,0.00021439,2]
[343168867,1732395040544,-107.3020969,0.00021439,2]
[343168869,1732395040555,-453.68307453,0.00021439,2]
[343168871,1732395040567,-46.31692547,0.00021439,2]
[343168873,1732395040576,-244.38277845,0.00021439,2]
[343168875,1732395040587,-255.61722155,0.00021439,2]
[343168877,1732395040596,-500.0,0.00021439,2]
[343168880,1732395040605,-527.12181431,0.00021439,2]
[343168883,1732395040615,-500.0,0.00021439,2]
[343168886,1732395040624,-500.0,0.00021439,2]
[343168888,1732395040633,-500.0,0.00021439,2]
[343168893,1732395040642,-500.0,0.00021439,2]
[343168896,1732395040652,-500.0,0.00021439,2]
[343168898,1732395040661,-3436.67,0.00021439,2]
[343168900,1732395040670,-500.0,0.00021439,2]
[343168902,1732395040679,-500.0,0.00021439,2]
[343168904,1732395040688,-500.0,0.00021439,2]
[343168906,1732395040697,-500.0,0.00021439,2]
[343168908,1732395040706,-500.0,0.00021439,2]
[343168910,1732395040715,-500.0,0.00021439,2]
[343168912,1732395040725,-500.0,0.00021439,2]
[343168914,1732395040734,-500.0,0.00021439,2]
[343168916,1732395040742,-500.0,0.00021439,2]
[343168918,1732395040751,-500.0,0.00021439,2]
[343168920,1732395040760,-500.0,0.00021439,2]
[343168922,1732395040769,-500.0,0.00021439,2]
[343168924,1732395040778,-500.0,0.00021439,2]
[343168926,1732395040786,-500.0,0.00021439,2]
[343168928,1732395040795,-500.0,0.00021439,2]
[343168929,1732395040807,-500.0,0.00021439,2]
[343168931,1732395040815,-500.0,0.00021439,2]
[343168933,1732395040825,-500.0,0.00021439,2]
[343168935,1732395040835,-500.0,0.00021439,2]
[343168937,1732395040844,-500.0,0.00021439,2]
[343168939,1732395040853,-500.0,0.00021439,2]
[343168941,1732395040863,-200.0,0.00021439,2]
[343168943,1732395040876,-500.0,0.00021439,2]
[343168945,1732395040886,-202.59380582,0.00021439,2]
[343168947,1732395040895,-500.97697949,0.00021439,2]
[343168949,1732395040905,-500.0,0.00021439,2]
[343168951,1732395040914,-500.0,0.00021439,2]
[343168953,1732395040924,-500.0,0.00021439,2]
[343168955,1732395040934,-500.0,0.00021439,2]
[343168957,1732395040943,-500.0,0.00021439,2]
[343168959,1732395040952,-500.0,0.00021439,2]
[343168961,1732395040962,-261.58,0.00021439,2]
[343168963,1732395040971,-761.43,0.00021439,2]
[343168965,1732395040980,-500.0,0.00021439,2]
[343168967,1732395040990,-500.0,0.00021439,2]
[343168969,1732395040999,-500.0,0.00021439,2]
[343168971,1732395041009,-500.0,0.00021439,2]
[343168973,1732395041018,-500.0,0.00021439,2]
[343168975,1732395041028,-500.0,0.00021439,2]
[343168977,1732395041038,-363.89590026,0.00021439,2]
[343168980,1732395041054,-136.10409974,0.00021439,2]
[343168982,1732395041064,-500.0,0.00021439,2]
[343168984,1732395041073,-507.48931397,0.00021439,2]
[343168986,1732395041082,-238.90658629,0.00021439,2]
[343169229,1732395043550,-261.09341371,0.00021439,2]
[343169230,1732395043560,-7.40391706,0.00021439,2]
[343169232,1732395043572,-492.59608294,0.00021439,2]
[343169234,1732395043581,-500.0,0.00021439,2]
[343169236,1732395043591,-500.0,0.00021439,2]
[343169237,1732395043602,-500.0,0.00021439,2]
[343169239,1732395043612,-500.0,0.00021439,2]
[343169241,1732395043621,-500.0,0.00021439,2]
[343169242,1732395043632,-284.11,0.00021439,2]
[343169244,1732395043642,-500.0,0.00021439,2]
[343169246,1732395043658,-311.54709371,0.00021439,2]
[343169248,1732395043674,-500.0,0.00021439,2]
[343169249,1732395043683,-500.0,0.00021439,2]
[343169251,1732395043693,-500.0,0.00021439,2]
[343169253,1732395043702,-500.0,0.00021439,2]
[343169254,1732395043712,-500.0,0.00021439,2]
[343169256,1732395043722,-500.0,0.00021439,2]
[343169258,1732395043731,-500.0,0.00021439,2]
[343169260,1732395043740,-500.0,0.00021439,2]
[343169261,1732395043750,-500.0,0.00021439,2]
[343169263,1732395043759,-500.0,0.00021439,2]
[343169265,1732395043769,-232.92466765,0.00021439,2]
[343169267,1732395043778,-500.0,0.00021439,2]
[343169268,1732395043787,-636.08,0.00021439,2]
[343169270,1732395043797,-500.0,0.00021439,2]
[343169272,1732395043808,-500.0,0.00021439,2]
[343169273,1732395043817,-500.0,0.00021439,2]
[343169275,1732395043827,-523.35665742,0.00021439,2]
[343169277,1732395043836,-513.45012866,0.00021439,2]
[343169278,1732395043845,-523.89490344,0.00021439,2]
[343169280,1732395043855,-345.72405363,0.00021439,2]
[343169282,1732395043866,-500.0,0.00021439,2]
[343169284,1732395043880,-500.0,0.00021439,2]
[343169285,1732395043889,-528.56199975,0.00021439,2]
[343169287,1732395043899,-500.0,0.00021439,2]
[343169289,1732395043908,-500.0,0.00021439,2]
[343169291,1732395043918,-513.9308019,0.00021439,2]
[343169292,1732395043927,-500.0,0.00021439,2]
[343169294,1732395043937,-500.0,0.00021439,2]
[343169296,1732395043947,-171.1378016,0.00021439,2]
[343169298,1732395043960,-328.8621984,0.00021439,2]
[343169300,1732395043969,-500.0,0.00021439,2]
[343169301,1732395043979,-500.0,0.00021439,2]
[343169303,1732395043988,-500.0,0.00021439,2]
[343169305,1732395043997,-500.0,0.00021439,2]
[343169307,1732395044007,-500.0,0.00021439,2]
[343169308,1732395044016,-500.0,0.00021439,2]
[343169310,1732395044025,-500.0,0.00021439,2]
[343169312,1732395044034,-169.371616,0.0002144,2]
[343169313,1732395044043,-8316.02230217,0.0002144,2]
[343169315,1732395044057,-2477.43157176,0.0002144,2]
[343169318,1732395044079,-444.53553203,0.0002144,2]
[343169320,1732395044090,-875.66927501,0.0002144,2]
[343169876,1732395050027,-492.36087866,0.00021439,2]
[343169879,1732395050043,-7.63912134,0.00021439,2]
[343169881,1732395050053,-500.0,0.00021439,2]
[343169883,1732395050070,-1469.28353239,0.0002144,2]
[343175187,1732395969290,251.22,0.00028162,60]
[343175191,1732396150155,-172.986884,0.00013973,2]
[343175192,1732396150181,-164.845747,0.00019673,2]
[343175193,1732396150207,-233.456787,0.00019716,2]
[343175194,1732396150229,-169.371616,0.0001987,2]
[343175195,1732396150251,-555.12644145,0.00019895,2]
[343175230,1732396232937,-668.1739544,0.00020013,2]
[343175231,1732396232950,-1776.6996041,0.00020013,2]
[343175232,1732396232959,-4578.3845187,0.00020016,2]
[343175233,1732396232968,-172.986884,0.00020447,2]
[343175234,1732396232982,-2719.51359151,0.00020921,2]
[343175283,1732396240700,-2002.2531443,0.00020921,2]
[343175285,1732396240709,-300.0,0.00020999,2]
[343175287,1732396240719,-300.0,0.00020999,2]
[343175288,1732396240728,-3000.0,0.00021,2]
[343175290,1732396240743,-3000.0,0.0002101,2]
[343175292,1732396240752,-684.57,0.00021018,2]
[343175293,1732396240762,-500.0,0.00021018,2]
[343175294,1732396240771,-501.19,0.00021018,2]
[343175295,1732396240780,-171.4,0.00021018,2]
[343175296,1732396240790,-3293.48,0.00021018,2]
[343175297,1732396240799,-517.83,0.00021019,2]
[343175298,1732396240809,-755.74,0.00021019,2]
[343175299,1732396240819,-500.0,0.00021019,2]
[343175300,1732396240829,-609.57,0.00021019,2]
[343175301,1732396240839,-500.0,0.00021019,2]
[343175302,1732396240848,-500.0,0.00021019,2]
[343175303,1732396240858,-500.0,0.00021019,2]
[343175304,1732396240867,-1291.27,0.00021019,2]
[343175305,1732396240877,-500.0,0.00021019,2]
[343175306,1732396240886,-3000.0,0.0002102,2]
[343175307,1732396240896,-407.5390146,0.00021021,2]
[343175308,1732396240906,-500.0,0.00021021,2]
[343175309,1732396240915,-500.0,0.00021021,2]
[343175310,1732396240924,-500.0,0.00021021,2]
[343175311,1732396240934,-243.0,0.00021021,2]
[343175312,1732396240943,-500.0,0.00021021,2]
[343175313,1732396240953,-200.0,0.00021021,2]
[343175314,1732396240962,-500.0,0.00021021,2]
[343175315,1732396240971,-500.0,0.00021021,2]
[343175316,1732396240982,-500.0,0.00021021,2]
[343175317,1732396240998,-423.82,0.00021021,2]
[343175318,1732396241007,-500.0,0.00021021,2]
[343175319,1732396241016,-500.0,0.00021021,2]
[343175320,1732396241026,-500.0,0.00021021,2]
[343175321,1732396241036,-158.0,0.00021021,2]
[343175322,1732396241045,-500.0,0.00021021,2]
[343175323,1732396241055,-500.0,0.00021021,2]
[343175324,1732396241064,-222.83,0.00021021,2]
[343175325,1732396241074,-500.0,0.00021021,2]
[343175326,1732396241083,-500.0,0.00021021,2]
[343175327,1732396241092,-500.0,0.00021021,2]
[343175328,1732396241102,-500.0,0.00021021,2]
[343175329,1732396241111,-500.0,0.00021021,2]
[343175330,1732396241120,-500.0,0.00021021,2]
[343175331,1732396241130,-189.43770817,0.00021021,2]
[343175332,1732396241139,-869.02,0.00021021,2]
[343175333,1732396241149,-500.0,0.00021021,2]
[343175334,1732396241159,-500.0,0.00021021,2]
[343175335,1732396241168,-500.0,0.00021021,2]
[343175336,1732396241177,-500.0,0.00021021,2]
[343175337,1732396241187,-500.0,0.00021021,2]
[343175338,1732396241196,-500.0,0.00021021,2]
[343175339,1732396241205,-500.0,0.00021021,2]
[343175340,1732396241214,-500.0,0.00021021,2]
[343175341,1732396241223,-500.0,0.00021021,2]
[343175342,1732396241236,-500.0,0.00021021,2]
[343175343,1732396241248,-500.0,0.00021021,2]
[343175344,1732396241257,-523.27332806,0.00021021,2]
[343175345,1732396241266,-500.0,0.00021021,2]
[343175346,1732396241275,-500.0,0.00021021,2]
[343175347,1732396241286,-500.0,0.00021021,2]
[343175348,1732396241295,-500.0,0.00021021,2]
[343175349,1732396241304,-485.11412375,0.00021021,2]
[343175350,1732396241313,-500.0,0.00021021,2]